[Event "Titled Tuesday Blitz June 21 Early 2022"]
[White "Melikhov, Evgeny V."]
[Black "Gubajdullin, Alexei"]
[WhiteFideId "4122046"]
[BlackFideId "4141202"]
[WhiteElo "1904"]
[BlackElo "2280"]
[Result "1-0"]
[Round "11"]
[TimeControl "180+1"]
[Date "2022.06.22"]
[WhiteClock "0:00:58"]
[BlackClock "0:00:29"]

1. d4 {[%clk 0:03:00]}  Nf6 {[%clk 0:02:59]} 2. c4 {[%clk 0:03:00]}  g6 {[%clk 0:02:59]} 3. Nc3 {[%clk 0:03:00]}  Bg7 {[%clk 0:02:59]} 4. e4 {[%clk 0:03:00]}  d6 {[%clk 0:02:58]} 5. f3 {[%clk 0:03:00]}  O-O {[%clk 0:02:58]} 6. Be3 {[%clk 0:03:00]}  Nc6 {[%clk 0:02:58]} 7. Nge2 {[%clk 0:03:00]}  a6 {[%clk 0:02:58]} 8. Qd2 {[%clk 0:02:58]}  Re8 {[%clk 0:02:57]} 9. Bh6 {[%clk 0:02:56]}  Bh8 {[%clk 0:02:57]} 10. h4 {[%clk 0:02:55]}  e5 {[%clk 0:02:57]} 11. d5 {[%clk 0:02:55]}  Nd4 {[%clk 0:02:56]} 12. O-O-O {[%clk 0:02:43]}  c5 {[%clk 0:02:55]} 13. dxc6 {[%clk 0:02:42]}  bxc6 {[%clk 0:02:54]} 14. h5 {[%clk 0:02:28]}  d5 {[%clk 0:02:48]} 15. hxg6 {[%clk 0:02:20]}  fxg6 {[%clk 0:02:47]} 16. cxd5 {[%clk 0:02:15]}  cxd5 {[%clk 0:02:47]} 17. Nxd4 {[%clk 0:02:11]}  exd4 {[%clk 0:02:46]} 18. Qxd4 {[%clk 0:02:02]}  Be6 {[%clk 0:01:45]} 19. e5 {[%clk 0:01:56]}  Nd7 {[%clk 0:01:45]} 20. f4 {[%clk 0:01:56]}  Qa5 {[%clk 0:01:42]} 21. Nxd5 {[%clk 0:01:42]}  Rac8+ {[%clk 0:01:16]} 22. Kb1 {[%clk 0:01:38]}  Nxe5 {[%clk 0:01:15]} 23. fxe5 {[%clk 0:01:25]}  Bxe5 {[%clk 0:01:14]} 24. Qxe5 {[%clk 0:01:07]}  Bf5+ {[%clk 0:01:13]} 25. Qxf5 {[%clk 0:01:07]}  gxf5 {[%clk 0:01:13]} 26. Nf6+ {[%clk 0:01:07]}  Kf7 {[%clk 0:01:12]} 27. Nxe8 {[%clk 0:01:07]}  Kxe8 {[%clk 0:00:58]} 28. Be2 {[%clk 0:01:04]}  Qa4 {[%clk 0:00:52]} 29. Bh5+ {[%clk 0:01:01]}  Ke7 {[%clk 0:00:52]} 30. Rhe1+ {[%clk 0:01:00]}  Kf6 {[%clk 0:00:29]} 31. Rd6# {[%clk 0:00:58]} 1-0


[Site "https://www.chess.com"]

[Event "Titled Tuesday Blitz June 21 Early 2022"]
[White "Mickiewicz, Piotr"]
[Black "Costachi, Mihnea"]
[WhiteFideId "1114891"]
[BlackFideId "1217518"]
[WhiteElo "2209"]
[BlackElo "2476"]
[Result "0-1"]
[Round "11"]
[TimeControl "180+1"]
[Date "2022.06.22"]
[WhiteClock "0:00:01"]
[BlackClock "0:01:16"]

1. e4 {[%clk 0:03:00]}  c5 {[%clk 0:03:00]} 2. Nf3 {[%clk 0:02:58]}  Nc6 {[%clk 0:03:00]} 3. d4 {[%clk 0:02:58]}  cxd4 {[%clk 0:03:01]} 4. Nxd4 {[%clk 0:02:58]}  Nf6 {[%clk 0:03:02]} 5. Nc3 {[%clk 0:02:57]}  d6 {[%clk 0:02:56]} 6. Bg5 {[%clk 0:02:55]}  e6 {[%clk 0:02:55]} 7. Qd2 {[%clk 0:02:55]}  a6 {[%clk 0:02:55]} 8. O-O-O {[%clk 0:02:54]}  Bd7 {[%clk 0:02:54]} 9. f4 {[%clk 0:02:52]}  Be7 {[%clk 0:02:54]} 10. Nf3 {[%clk 0:02:49]}  h6 {[%clk 0:02:51]} 11. Bxf6 {[%clk 0:02:48]}  gxf6 {[%clk 0:02:51]} 12. Kb1 {[%clk 0:02:48]}  b5 {[%clk 0:02:51]} 13. f5 {[%clk 0:02:47]}  b4 {[%clk 0:02:44]} 14. Ne2 {[%clk 0:02:45]}  a5 {[%clk 0:02:44]} 15. Nf4 {[%clk 0:02:42]}  Rg8 {[%clk 0:02:38]} 16. fxe6 {[%clk 0:02:07]}  fxe6 {[%clk 0:02:37]} 17. Bb5 {[%clk 0:02:00]}  Qb6 {[%clk 0:02:37]} 18. Bxc6 {[%clk 0:01:54]}  Qxc6 {[%clk 0:02:28]} 19. Nd4 {[%clk 0:01:53]}  Qc8 {[%clk 0:02:27]} 20. Rhf1 {[%clk 0:01:43]}  e5 {[%clk 0:02:25]} 21. Nd5 {[%clk 0:01:41]}  exd4 {[%clk 0:02:25]} 22. Qxd4 {[%clk 0:01:32]}  Qd8 {[%clk 0:01:57]} 23. Nxf6+ {[%clk 0:01:18]}  Bxf6 {[%clk 0:01:56]} 24. Rxf6 {[%clk 0:01:19]}  Qe7 {[%clk 0:01:51]} 25. Rxd6 {[%clk 0:01:14]}  Be6 {[%clk 0:01:51]} 26. Qc5 {[%clk 0:00:55]}  Rc8 {[%clk 0:01:51]} 27. Qb5+ {[%clk 0:00:54]}  Kf8 {[%clk 0:01:45]} 28. Rf1+ {[%clk 0:00:52]}  Bf7 {[%clk 0:01:45]} 29. Rd7 {[%clk 0:00:47]}  Qe6 {[%clk 0:01:33]} 30. Rdxf7+ {[%clk 0:00:12]}  Qxf7 {[%clk 0:01:34]} 31. Rxf7+ {[%clk 0:00:12]}  Kxf7 {[%clk 0:01:35]} 32. Qd7+ {[%clk 0:00:11]}  Kf6 {[%clk 0:01:35]} 33. Qf5+ {[%clk 0:00:11]}  Ke7 {[%clk 0:01:35]} 34. Qe5+ {[%clk 0:00:11]}  Kd7 {[%clk 0:01:35]} 35. Qxa5 {[%clk 0:00:10]}  Rxg2 {[%clk 0:01:33]} 36. Qb5+ {[%clk 0:00:08]}  Ke6 {[%clk 0:01:30]} 37. Qd5+ {[%clk 0:00:08]}  Ke7 {[%clk 0:01:29]} 38. Qe5+ {[%clk 0:00:05]}  Kf7 {[%clk 0:01:30]} 39. Qd5+ {[%clk 0:00:05]}  Kg7 {[%clk 0:01:28]} 40. Qd4+ {[%clk 0:00:04]}  Kg6 {[%clk 0:01:27]} 41. Qd6+ {[%clk 0:00:01]}  Kg5 {[%clk 0:01:24]} 42. Qe5+ {[%clk 0:00:01]}  Kh4 {[%clk 0:01:19]} 43. Qe7+ {[%clk 0:00:01]}  Kh3 {[%clk 0:01:16]} 44. b3 {[%clk 0:00:02]}  Rcxc2 {[%clk 0:01:14]} 45. Qe6+ {[%clk 0:00:02]}  Kxh2 {[%clk 0:01:15]} 46. Qxh6+ {[%clk 0:00:01]}  Kg1 {[%clk 0:01:15]} 47. Qe3+ {[%clk 0:00:01]}  Rcf2 {[%clk 0:01:16]} 0-1


[Site "https://www.chess.com"]

[Event "Titled Tuesday Blitz June 21 Early 2022"]
[White "Mitrovic, Darko R"]
[Black "Polster, Christian"]
[WhiteFideId "927023"]
[BlackFideId "12965081"]
[WhiteElo "2150"]
[BlackElo "2282"]
[Result "0-1"]
[Round "11"]
[TimeControl "180+1"]
[Date "2022.06.22"]
[WhiteClock "0:00:18"]
[BlackClock "0:00:08"]

1. d4 {[%clk 0:03:00]}  d5 {[%clk 0:02:58]} 2. c4 {[%clk 0:03:00]}  e6 {[%clk 0:02:50]} 3. Nf3 {[%clk 0:02:59]}  c6 {[%clk 0:02:50]} 4. g3 {[%clk 0:02:49]}  Nf6 {[%clk 0:02:21]} 5. Bg2 {[%clk 0:02:48]}  Bb4+ {[%clk 0:02:12]} 6. Bd2 {[%clk 0:02:46]}  Bd6 {[%clk 0:02:10]} 7. b3 {[%clk 0:02:37]}  O-O {[%clk 0:02:09]} 8. O-O {[%clk 0:02:36]}  h6 {[%clk 0:02:08]} 9. Nc3 {[%clk 0:02:33]}  Nbd7 {[%clk 0:02:03]} 10. Qc2 {[%clk 0:02:29]}  b6 {[%clk 0:01:31]} 11. e4 {[%clk 0:02:23]}  dxe4 {[%clk 0:01:31]} 12. Nxe4 {[%clk 0:02:23]}  Nxe4 {[%clk 0:01:30]} 13. Qxe4 {[%clk 0:02:23]}  Bb7 {[%clk 0:01:30]} 14. Bf4 {[%clk 0:02:09]}  Bxf4 {[%clk 0:01:23]} 15. Qxf4 {[%clk 0:02:08]}  c5 {[%clk 0:01:23]} 16. Rad1 {[%clk 0:02:05]}  Qb8 {[%clk 0:01:14]} 17. Qxb8 {[%clk 0:02:02]}  Raxb8 {[%clk 0:01:15]} 18. dxc5 {[%clk 0:01:52]}  Nxc5 {[%clk 0:01:16]} 19. Ne5 {[%clk 0:01:51]}  Bxg2 {[%clk 0:00:46]} 20. Kxg2 {[%clk 0:01:50]}  Rfc8 {[%clk 0:00:37]} 21. Rd2 {[%clk 0:01:26]}  a5 {[%clk 0:00:23]} 22. Rfd1 {[%clk 0:01:21]}  Kf8 {[%clk 0:00:18]} 23. Nd7+ {[%clk 0:01:01]}  Nxd7 {[%clk 0:00:08]} 24. Rxd7 {[%clk 0:01:00]}  Ke8 {[%clk 0:00:08]} 25. a4 {[%clk 0:00:29]}  Rd8 {[%clk 0:00:07]} 26. Rxd8+ {[%clk 0:00:24]}  Rxd8 {[%clk 0:00:08]} 27. Rxd8+ {[%clk 0:00:25]}  Kxd8 {[%clk 0:00:08]} 28. Kf3 {[%clk 0:00:25]}  Kd7 {[%clk 0:00:09]} 29. Ke4 {[%clk 0:00:25]}  Kd6 {[%clk 0:00:09]} 30. Kd4 {[%clk 0:00:25]}  e5+ {[%clk 0:00:05]} 31. Kc3 {[%clk 0:00:23]}  Kc5 {[%clk 0:00:04]} 32. g4 {[%clk 0:00:23]}  g6 {[%clk 0:00:04]} 33. f3 {[%clk 0:00:21]}  f5 {[%clk 0:00:05]} 34. h4 {[%clk 0:00:20]}  e4 {[%clk 0:00:03]} 35. gxf5 {[%clk 0:00:15]}  exf3 {[%clk 0:00:03]} 36. Kd3 {[%clk 0:00:15]}  gxf5 {[%clk 0:00:03]} 37. Ke3 {[%clk 0:00:15]}  Kb4 {[%clk 0:00:03]} 38. Kxf3 {[%clk 0:00:15]}  Kxb3 {[%clk 0:00:04]} 39. Kf4 {[%clk 0:00:15]}  Kxa4 {[%clk 0:00:04]} 40. Kxf5 {[%clk 0:00:16]}  Kb4 {[%clk 0:00:05]} 41. Kg6 {[%clk 0:00:16]}  a4 {[%clk 0:00:05]} 42. Kxh6 {[%clk 0:00:17]}  a3 {[%clk 0:00:06]} 43. Kg6 {[%clk 0:00:17]}  a2 {[%clk 0:00:06]} 44. h5 {[%clk 0:00:18]}  a1=Q {[%clk 0:00:07]} 45. h6 {[%clk 0:00:18]}  Qh8 {[%clk 0:00:07]} 46. h7 {[%clk 0:00:19]}  Kxc4 {[%clk 0:00:07]} 47. Kh6 {[%clk 0:00:18]}  b5 {[%clk 0:00:08]} 0-1


[Site "https://www.chess.com"]

[Event "Titled Tuesday Blitz June 21 Early 2022"]
[White "Molina, Roberto Junio Brito"]
[Black "Bryakin, Mikhail"]
[WhiteFideId "2109450"]
[BlackFideId "4165314"]
[WhiteElo "2432"]
[BlackElo "2417"]
[Result "0-1"]
[Round "11"]
[TimeControl "180+1"]
[Date "2022.06.21"]
[WhiteClock "0:00:06"]
[BlackClock "0:00:14"]

1. d4 {[%clk 0:03:00]}  c5 {[%clk 0:02:50]} 2. d5 {[%clk 0:03:00]}  e5 {[%clk 0:02:50]} 3. e4 {[%clk 0:02:58]}  d6 {[%clk 0:02:46]} 4. Be2 {[%clk 0:02:58]}  Be7 {[%clk 0:02:31]} 5. Bg4 {[%clk 0:02:55]}  Nd7 {[%clk 0:02:24]} 6. Nc3 {[%clk 0:02:54]}  a6 {[%clk 0:02:19]} 7. a4 {[%clk 0:02:53]}  Bg5 {[%clk 0:02:18]} 8. Bxg5 {[%clk 0:02:53]}  Qxg5 {[%clk 0:02:19]} 9. h4 {[%clk 0:02:53]}  Qd8 {[%clk 0:02:17]} 10. Qd2 {[%clk 0:02:49]}  Ngf6 {[%clk 0:02:15]} 11. Be2 {[%clk 0:02:48]}  h5 {[%clk 0:02:14]} 12. Nf3 {[%clk 0:02:45]}  g6 {[%clk 0:02:14]} 13. Ng5 {[%clk 0:02:43]}  Nh7 {[%clk 0:02:14]} 14. Nxh7 {[%clk 0:02:42]}  Rxh7 {[%clk 0:02:15]} 15. g3 {[%clk 0:02:42]}  b6 {[%clk 0:02:07]} 16. Kf1 {[%clk 0:02:39]}  Nf6 {[%clk 0:02:06]} 17. Kg2 {[%clk 0:02:39]}  Kf8 {[%clk 0:02:06]} 18. Raf1 {[%clk 0:02:37]}  Kg7 {[%clk 0:02:05]} 19. f4 {[%clk 0:02:36]}  exf4 {[%clk 0:02:03]} 20. gxf4 {[%clk 0:02:27]}  Ng4 {[%clk 0:02:02]} 21. Bxg4 {[%clk 0:02:25]}  Bxg4 {[%clk 0:02:02]} 22. Kg3 {[%clk 0:02:24]}  Qf6 {[%clk 0:02:00]} 23. Re1 {[%clk 0:02:17]}  Re8 {[%clk 0:01:57]} 24. Rhf1 {[%clk 0:02:16]}  Rhh8 {[%clk 0:01:50]} 25. e5 {[%clk 0:02:13]}  Qf5 {[%clk 0:01:45]} 26. Ne4 {[%clk 0:02:03]}  Bh3 {[%clk 0:01:29]} 27. Nxd6 {[%clk 0:01:42]}  Qg4+ {[%clk 0:01:28]} 28. Kh2 {[%clk 0:01:42]}  Bxf1 {[%clk 0:01:28]} 29. Nxe8+ {[%clk 0:01:39]}  Rxe8 {[%clk 0:01:28]} 30. Rxf1 {[%clk 0:01:39]}  Qxh4+ {[%clk 0:01:27]} 31. Kg1 {[%clk 0:01:38]}  Qg3+ {[%clk 0:01:25]} 32. Qg2 {[%clk 0:01:37]}  Qe3+ {[%clk 0:01:25]} 33. Kh1 {[%clk 0:01:29]}  Qd4 {[%clk 0:01:16]} 34. c3 {[%clk 0:01:21]}  Qxa4 {[%clk 0:01:16]} 35. d6 {[%clk 0:01:12]}  Qd7 {[%clk 0:01:12]} 36. Kh2 {[%clk 0:01:11]}  a5 {[%clk 0:00:59]} 37. Qg5 {[%clk 0:00:58]}  Qe6 {[%clk 0:00:53]} 38. Rg1 {[%clk 0:00:55]}  a4 {[%clk 0:00:50]} 39. Rg2 {[%clk 0:00:49]}  b5 {[%clk 0:00:49]} 40. Rd2 {[%clk 0:00:44]}  Qd7 {[%clk 0:00:27]} 41. Qf6+ {[%clk 0:00:37]}  Kg8 {[%clk 0:00:27]} 42. Rg2 {[%clk 0:00:35]}  Re6 {[%clk 0:00:22]} 43. Qg5 {[%clk 0:00:34]}  Qe8 {[%clk 0:00:17]} 44. Qxh5 {[%clk 0:00:31]}  b4 {[%clk 0:00:18]} 45. cxb4 {[%clk 0:00:31]}  cxb4 {[%clk 0:00:18]} 46. Qg5 {[%clk 0:00:28]}  a3 {[%clk 0:00:18]} 47. bxa3 {[%clk 0:00:29]}  bxa3 {[%clk 0:00:18]} 48. Rd2 {[%clk 0:00:30]}  Qd7 {[%clk 0:00:16]} 49. Qg2 {[%clk 0:00:30]}  Re8 {[%clk 0:00:16]} 50. Qd5 {[%clk 0:00:27]}  Rb8 {[%clk 0:00:15]} 51. Rg2 {[%clk 0:00:22]}  Kg7 {[%clk 0:00:14]} 52. Qd4 {[%clk 0:00:19]}  Rh8+ {[%clk 0:00:11]} 53. Kg1 {[%clk 0:00:19]}  Qe6 {[%clk 0:00:10]} 54. d7 {[%clk 0:00:19]}  Rd8 {[%clk 0:00:10]} 55. f5 {[%clk 0:00:19]}  Qxd7 {[%clk 0:00:06]} 56. Qxd7 {[%clk 0:00:10]}  Rxd7 {[%clk 0:00:07]} 57. fxg6 {[%clk 0:00:07]}  fxg6 {[%clk 0:00:07]} 58. Ra2 {[%clk 0:00:06]}  Ra7 {[%clk 0:00:07]} 59. Kf2 {[%clk 0:00:05]}  Ra4 {[%clk 0:00:07]} 60. Ke3 {[%clk 0:00:06]}  Kf7 {[%clk 0:00:08]} 61. Kd3 {[%clk 0:00:06]}  Ke6 {[%clk 0:00:08]} 62. Kc3 {[%clk 0:00:06]}  Kxe5 {[%clk 0:00:09]} 63. Kb3 {[%clk 0:00:06]}  Ra8 {[%clk 0:00:09]} 64. Re2+ {[%clk 0:00:06]}  Kf4 {[%clk 0:00:10]} 65. Ka2 {[%clk 0:00:04]}  g5 {[%clk 0:00:10]} 66. Re7 {[%clk 0:00:05]}  g4 {[%clk 0:00:10]} 67. Rf7+ {[%clk 0:00:05]}  Kg3 {[%clk 0:00:11]} 68. Rg7 {[%clk 0:00:05]}  Kh3 {[%clk 0:00:11]} 69. Rh7+ {[%clk 0:00:05]}  Kg2 {[%clk 0:00:12]} 70. Rg7 {[%clk 0:00:06]}  g3 {[%clk 0:00:12]} 71. Rg6 {[%clk 0:00:05]}  Kh2 {[%clk 0:00:12]} 72. Rh6+ {[%clk 0:00:05]}  Kg1 {[%clk 0:00:13]} 73. Rg6 {[%clk 0:00:06]}  g2 {[%clk 0:00:13]} 74. Rg7 {[%clk 0:00:07]}  Rh8 {[%clk 0:00:14]} 75. Kxa3 {[%clk 0:00:06]}  Kh1 {[%clk 0:00:14]} 0-1


[Site "https://www.chess.com"]

[Event "Titled Tuesday Blitz June 21 Early 2022"]
[White "Navara, David"]
[Black "Kosakowski, Jakub"]
[WhiteFideId "309095"]
[BlackFideId "1185080"]
[WhiteElo "2686"]
[BlackElo "2476"]
[Result "1-0"]
[Round "11"]
[TimeControl "180+1"]
[Date "2022.06.21"]
[WhiteClock "0:00:08"]
[BlackClock "0:00:02"]

1. d4 {[%clk 0:03:00]}  Nf6 {[%clk 0:02:57]} 2. c4 {[%clk 0:03:01]}  e6 {[%clk 0:02:57]} 3. Nc3 {[%clk 0:03:01]}  Bb4 {[%clk 0:02:56]} 4. e3 {[%clk 0:03:02]}  O-O {[%clk 0:02:56]} 5. Bd3 {[%clk 0:03:02]}  d5 {[%clk 0:02:55]} 6. cxd5 {[%clk 0:03:03]}  exd5 {[%clk 0:02:55]} 7. Ne2 {[%clk 0:03:03]}  Re8 {[%clk 0:02:54]} 8. O-O {[%clk 0:03:03]}  Bd6 {[%clk 0:02:54]} 9. Bd2 {[%clk 0:02:55]}  c5 {[%clk 0:02:34]} 10. Nb5 {[%clk 0:02:45]}  c4 {[%clk 0:02:27]} 11. Nxd6 {[%clk 0:02:45]}  Qxd6 {[%clk 0:02:27]} 12. Bc2 {[%clk 0:02:45]}  Nc6 {[%clk 0:02:27]} 13. a3 {[%clk 0:02:32]}  Bd7 {[%clk 0:02:15]} 14. f3 {[%clk 0:02:31]}  Re7 {[%clk 0:02:09]} 15. g4 {[%clk 0:02:23]}  Rae8 {[%clk 0:02:06]} 16. Ng3 {[%clk 0:02:22]}  h6 {[%clk 0:01:56]} 17. Re1 {[%clk 0:02:08]}  b5 {[%clk 0:01:46]} 18. Re2 {[%clk 0:02:05]}  b4 {[%clk 0:01:19]} 19. axb4 {[%clk 0:02:03]}  Nxb4 {[%clk 0:01:20]} 20. Rxa7 {[%clk 0:01:58]}  Nxc2 {[%clk 0:00:42]} 21. Qxc2 {[%clk 0:01:59]}  h5 {[%clk 0:00:41]} 22. gxh5 {[%clk 0:01:40]}  Bh3 {[%clk 0:00:41]} 23. Rxe7 {[%clk 0:01:35]}  Rxe7 {[%clk 0:00:42]} 24. Re1 {[%clk 0:01:30]}  Nh7 {[%clk 0:00:33]} 25. Ra1 {[%clk 0:01:29]}  Re8 {[%clk 0:00:29]} 26. Qa4 {[%clk 0:00:47]}  Bd7 {[%clk 0:00:19]} 27. Qa6 {[%clk 0:00:42]}  Qb8 {[%clk 0:00:17]} 28. Bc3 {[%clk 0:00:20]}  Ng5 {[%clk 0:00:16]} 29. Kf2 {[%clk 0:00:18]}  Nh3+ {[%clk 0:00:16]} 30. Ke2 {[%clk 0:00:18]}  Qf4 {[%clk 0:00:11]} 31. Bd2 {[%clk 0:00:18]}  Qxd4 {[%clk 0:00:11]} 32. Qa3 {[%clk 0:00:11]}  Ng1+ {[%clk 0:00:08]} 33. Rxg1 {[%clk 0:00:10]}  Qh4 {[%clk 0:00:05]} 34. Kf2 {[%clk 0:00:09]}  Qxh2+ {[%clk 0:00:04]} 35. Rg2 {[%clk 0:00:09]}  Qh4 {[%clk 0:00:04]} 36. Qc3 {[%clk 0:00:10]}  Qg5 {[%clk 0:00:02]} 37. Nf5 {[%clk 0:00:08]} 1-0


[Site "https://www.chess.com"]

[Event "Titled Tuesday Blitz June 21 Early 2022"]
[White "Paravyan, David"]
[Black "Mindlin, Alon"]
[WhiteFideId "4194985"]
[BlackFideId "2800071"]
[WhiteElo "2569"]
[BlackElo "2390"]
[Result "1-0"]
[Round "11"]
[TimeControl "180+1"]
[Date "2022.06.21"]
[WhiteClock "0:02:16"]
[BlackClock "0:01:46"]

1. e4 {[%clk 0:03:00]}  e5 {[%clk 0:02:59]} 2. Nf3 {[%clk 0:03:01]}  Nc6 {[%clk 0:02:59]} 3. Nc3 {[%clk 0:03:02]}  Nf6 {[%clk 0:02:59]} 4. d4 {[%clk 0:03:02]}  exd4 {[%clk 0:02:59]} 5. Nxd4 {[%clk 0:03:03]}  Bb4 {[%clk 0:02:59]} 6. Nxc6 {[%clk 0:03:04]}  bxc6 {[%clk 0:02:59]} 7. Bd3 {[%clk 0:03:04]}  d5 {[%clk 0:03:00]} 8. exd5 {[%clk 0:03:05]}  O-O {[%clk 0:03:00]} 9. O-O {[%clk 0:03:06]}  cxd5 {[%clk 0:03:00]} 10. Bg5 {[%clk 0:03:07]}  c6 {[%clk 0:03:00]} 11. Qf3 {[%clk 0:03:07]}  Be7 {[%clk 0:03:00]} 12. h3 {[%clk 0:03:05]}  h6 {[%clk 0:02:59]} 13. Bf4 {[%clk 0:03:05]}  Bd6 {[%clk 0:02:59]} 14. Rfe1 {[%clk 0:03:05]}  Rb8 {[%clk 0:02:53]} 15. b3 {[%clk 0:03:05]}  Rb4 {[%clk 0:02:51]} 16. Ne2 {[%clk 0:03:05]}  Bxf4 {[%clk 0:02:49]} 17. Nxf4 {[%clk 0:03:06]}  Qd6 {[%clk 0:02:47]} 18. c4 {[%clk 0:02:59]}  dxc4 {[%clk 0:02:37]} 19. Bxc4 {[%clk 0:03:00]}  Ba6 {[%clk 0:02:37]} 20. Rad1 {[%clk 0:02:58]}  Qc7 {[%clk 0:02:23]} 21. Ng6 {[%clk 0:02:33]}  Rxc4 {[%clk 0:02:19]} 22. Ne7+ {[%clk 0:02:31]}  Kh8 {[%clk 0:02:19]} 23. bxc4 {[%clk 0:02:30]}  Bxc4 {[%clk 0:02:19]} 24. Qxc6 {[%clk 0:02:31]}  Qxc6 {[%clk 0:02:06]} 25. Nxc6 {[%clk 0:02:32]}  a6 {[%clk 0:02:03]} 26. a3 {[%clk 0:02:31]}  Rc8 {[%clk 0:02:00]} 27. Rd8+ {[%clk 0:02:30]}  Rxd8 {[%clk 0:01:59]} 28. Nxd8 {[%clk 0:02:31]}  Kg8 {[%clk 0:01:53]} 29. Rc1 {[%clk 0:02:27]}  Bb5 {[%clk 0:01:53]} 30. Rc8 {[%clk 0:02:27]}  Nd5 {[%clk 0:01:51]} 31. Ne6+ {[%clk 0:02:22]}  Kh7 {[%clk 0:01:51]} 32. Nf8+ {[%clk 0:02:21]}  Kg8 {[%clk 0:01:51]} 33. Ne6+ {[%clk 0:02:18]}  Kh7 {[%clk 0:01:52]} 34. Nd4 {[%clk 0:02:19]}  Bd3 {[%clk 0:01:49]} 35. Rc5 {[%clk 0:02:19]}  Nf6 {[%clk 0:01:46]} 36. f3 {[%clk 0:02:16]} 1-0


[Site "https://www.chess.com"]

[Event "Titled Tuesday Blitz June 21 Early 2022"]
[White "Piesik, Piotr"]
[Black "Borgaonkar Akshay"]
[WhiteFideId "1136194"]
[BlackFideId "25639110"]
[WhiteElo "2247"]
[BlackElo "1660"]
[Result "1-0"]
[Round "11"]
[TimeControl "180+1"]
[Date "2022.06.22"]
[WhiteClock "0:01:23"]
[BlackClock "0:00:03"]

1. Nf3 {[%clk 0:03:00]}  c5 {[%clk 0:02:58]} 2. g3 {[%clk 0:03:01]}  Nc6 {[%clk 0:02:58]} 3. Bg2 {[%clk 0:03:01]}  d5 {[%clk 0:02:58]} 4. O-O {[%clk 0:03:02]}  e5 {[%clk 0:02:59]} 5. d3 {[%clk 0:03:03]}  Nf6 {[%clk 0:02:59]} 6. Nbd2 {[%clk 0:03:03]}  Be7 {[%clk 0:03:00]} 7. e4 {[%clk 0:03:04]}  O-O {[%clk 0:02:57]} 8. c3 {[%clk 0:03:03]}  h6 {[%clk 0:02:55]} 9. Qc2 {[%clk 0:03:02]}  Be6 {[%clk 0:02:55]} 10. Re1 {[%clk 0:03:02]}  d4 {[%clk 0:02:52]} 11. Nc4 {[%clk 0:03:01]}  Nd7 {[%clk 0:02:42]} 12. a4 {[%clk 0:02:51]}  Bf6 {[%clk 0:02:35]} 13. Nfd2 {[%clk 0:02:45]}  g5 {[%clk 0:02:27]} 14. a5 {[%clk 0:02:43]}  b5 {[%clk 0:02:21]} 15. axb6 {[%clk 0:02:42]}  axb6 {[%clk 0:02:22]} 16. Rxa8 {[%clk 0:02:41]}  Qxa8 {[%clk 0:02:23]} 17. Nd6 {[%clk 0:02:41]}  Ne7 {[%clk 0:02:07]} 18. Nf5 {[%clk 0:02:36]}  Nxf5 {[%clk 0:01:52]} 19. exf5 {[%clk 0:02:37]}  Bd5 {[%clk 0:01:52]} 20. Bxd5 {[%clk 0:02:34]}  Qxd5 {[%clk 0:01:52]} 21. c4 {[%clk 0:02:34]}  Qc6 {[%clk 0:01:50]} 22. Ne4 {[%clk 0:02:34]}  Kg7 {[%clk 0:01:49]} 23. Bd2 {[%clk 0:02:30]}  b5 {[%clk 0:01:48]} 24. cxb5 {[%clk 0:02:27]}  Qxb5 {[%clk 0:01:47]} 25. Ra1 {[%clk 0:02:24]}  Rb8 {[%clk 0:01:45]} 26. Ra7 {[%clk 0:02:18]}  Rd8 {[%clk 0:00:41]} 27. Ba5 {[%clk 0:02:16]}  Qb8 {[%clk 0:00:35]} 28. Ra6 {[%clk 0:02:04]}  Qb5 {[%clk 0:00:32]} 29. Rxf6 {[%clk 0:01:49]}  Qxa5 {[%clk 0:00:30]} 30. Rd6 {[%clk 0:01:38]}  Kf8 {[%clk 0:00:04]} 31. Qc4 {[%clk 0:01:31]}  Ke7 {[%clk 0:00:03]} 32. f6+ {[%clk 0:01:26]}  Kf8 {[%clk 0:00:01]} 33. Qd5 {[%clk 0:01:23]}  Qe1+ {[%clk 0:00:01]} 34. Kg2 {[%clk 0:01:23]}  Qe2 {[%clk 0:00:01]} 35. Rxd7 {[%clk 0:01:22]}  Rxd7 {[%clk 0:00:02]} 36. Qxd7 {[%clk 0:01:23]}  Kg8 {[%clk 0:00:02]} 37. Qe8+ {[%clk 0:01:22]}  Kh7 {[%clk 0:00:03]} 38. Qxf7+ {[%clk 0:01:23]} 1-0


[Site "https://www.chess.com"]

[Event "Titled Tuesday Blitz June 21 Early 2022"]
[White "Przybylski, Wojciech"]
[Black "Kozelov, Roman"]
[WhiteFideId "1117599"]
[BlackFideId "14133377"]
[WhiteElo "2133"]
[BlackElo "2149"]
[Result "1-0"]
[Round "11"]
[TimeControl "180+1"]
[Date "2022.06.22"]
[WhiteClock "0:00:12"]
[BlackClock "0:00:08"]

1. e4 {[%clk 0:03:00]}  e6 {[%clk 0:02:59]} 2. d4 {[%clk 0:02:59]}  d5 {[%clk 0:03:00]} 3. Nc3 {[%clk 0:03:00]}  Bb4 {[%clk 0:02:58]} 4. e5 {[%clk 0:02:59]}  c5 {[%clk 0:02:58]} 5. a3 {[%clk 0:02:59]}  Bxc3+ {[%clk 0:02:59]} 6. bxc3 {[%clk 0:03:00]}  Ne7 {[%clk 0:02:59]} 7. Qg4 {[%clk 0:02:59]}  Kf8 {[%clk 0:02:59]} 8. h4 {[%clk 0:02:57]}  Qc7 {[%clk 0:02:59]} 9. Bd2 {[%clk 0:02:55]}  Bd7 {[%clk 0:02:52]} 10. Bd3 {[%clk 0:02:52]}  c4 {[%clk 0:02:48]} 11. Be2 {[%clk 0:02:52]}  Ba4 {[%clk 0:02:48]} 12. Rc1 {[%clk 0:02:46]}  Qb6 {[%clk 0:02:44]} 13. Nh3 {[%clk 0:02:42]}  Qb2 {[%clk 0:02:43]} 14. O-O {[%clk 0:02:39]}  Bxc2 {[%clk 0:02:43]} 15. Qf4 {[%clk 0:02:30]}  Nbc6 {[%clk 0:02:35]} 16. h5 {[%clk 0:02:28]}  h6 {[%clk 0:02:35]} 17. Bg4 {[%clk 0:02:21]}  Ke8 {[%clk 0:02:32]} 18. Qe3 {[%clk 0:02:15]}  b6 {[%clk 0:02:28]} 19. Nf4 {[%clk 0:02:10]}  Na5 {[%clk 0:02:18]} 20. Rce1 {[%clk 0:01:14]}  Nb3 {[%clk 0:02:01]} 21. Bc1 {[%clk 0:01:13]}  Nxc1 {[%clk 0:02:00]} 22. Rxc1 {[%clk 0:01:11]}  Bf5 {[%clk 0:02:00]} 23. Bd1 {[%clk 0:01:08]}  Qxa3 {[%clk 0:01:57]} 24. g4 {[%clk 0:00:59]}  Bd3 {[%clk 0:01:57]} 25. Nxd3 {[%clk 0:00:57]}  cxd3 {[%clk 0:01:56]} 26. Bf3 {[%clk 0:00:55]}  Qa6 {[%clk 0:01:43]} 27. Rfd1 {[%clk 0:00:52]}  Rc8 {[%clk 0:01:40]} 28. Rxd3 {[%clk 0:00:52]}  Kd7 {[%clk 0:01:29]} 29. Rdd1 {[%clk 0:00:49]}  Rc7 {[%clk 0:01:28]} 30. Be2 {[%clk 0:00:47]}  b5 {[%clk 0:01:26]} 31. Ra1 {[%clk 0:00:44]}  Qb6 {[%clk 0:01:26]} 32. Rdb1 {[%clk 0:00:44]}  Rb8 {[%clk 0:01:09]} 33. Rxb5 {[%clk 0:00:39]}  Qxb5 {[%clk 0:01:09]} 34. Bxb5+ {[%clk 0:00:39]}  Rxb5 {[%clk 0:01:10]} 35. Qd3 {[%clk 0:00:37]}  Rb3 {[%clk 0:01:04]} 36. Qh7 {[%clk 0:00:36]}  Rbxc3 {[%clk 0:01:00]} 37. Kg2 {[%clk 0:00:33]}  R3c4 {[%clk 0:00:55]} 38. Rd1 {[%clk 0:00:30]}  Rc1 {[%clk 0:00:43]} 39. Rd2 {[%clk 0:00:29]}  Ra1 {[%clk 0:00:35]} 40. Qxg7 {[%clk 0:00:28]}  Rcc1 {[%clk 0:00:35]} 41. Qxh6 {[%clk 0:00:24]}  Rg1+ {[%clk 0:00:34]} 42. Kf3 {[%clk 0:00:23]}  Ra3+ {[%clk 0:00:29]} 43. Ke2 {[%clk 0:00:23]}  Raa1 {[%clk 0:00:25]} 44. Qf4 {[%clk 0:00:18]}  Rae1+ {[%clk 0:00:24]} 45. Kf3 {[%clk 0:00:18]}  Re4 {[%clk 0:00:23]} 46. Qxf7 {[%clk 0:00:15]}  Rexg4 {[%clk 0:00:15]} 47. Ra2 {[%clk 0:00:14]}  Rg7 {[%clk 0:00:09]} 48. Rxa7+ {[%clk 0:00:13]}  Kd8 {[%clk 0:00:08]} 49. Qf8# {[%clk 0:00:12]} 1-0


[Site "https://www.chess.com"]